[Event "Early-Titled-Tuesday-Blitz-March-12-2024"]
[Site "Chess.com"]
[Date "2024.03.12"]
[Round "5"]
[White "crazyluzhinTh3"]
[Black "sokidze"]
[Result "1-0"]
[WhiteElo "2569"]
[BlackElo "2773"]
[TimeControl "180+1"]
[EndTime "8:55:46 PDT"]
[Termination "crazyluzhinTh3 won on time"]

1. e4 {[%clk 0:02:56.7]} 1... c6 {[%clk 0:02:57.6]} 2. d4 {[%clk 0:02:56.4]}
2... d5 {[%clk 0:02:58]} 3. e5 {[%clk 0:02:57]} 3... Bf5 {[%clk 0:02:57.8]} 4.
Nf3 {[%clk 0:02:55.2]} 4... e6 {[%clk 0:02:57.5]} 5. Be2 {[%clk 0:02:55.6]} 5...
c5 {[%clk 0:02:57.7]} 6. Be3 {[%clk 0:02:55.2]} 6... Qb6 {[%clk 0:02:57.6]} 7.
Nc3 {[%clk 0:02:55]} 7... Nc6 {[%clk 0:02:57.9]} 8. Na4 {[%clk 0:02:54.4]} 8...
Qa5+ {[%clk 0:02:57.2]} 9. c3 {[%clk 0:02:54.9]} 9... c4 {[%clk 0:02:56.9]} 10.
b4 {[%clk 0:02:52.5]} 10... Qc7 {[%clk 0:02:24.3]} 11. O-O {[%clk 0:02:45.9]}
11... Nge7 {[%clk 0:02:01.8]} 12. Nh4 {[%clk 0:02:41.4]} 12... Bg6 {[%clk
0:01:59.2]} 13. Nc5 {[%clk 0:02:38.2]} 13... Nf5 {[%clk 0:01:55.9]} 14. Nxg6
{[%clk 0:02:37.2]} 14... hxg6 {[%clk 0:01:53.9]} 15. g3 {[%clk 0:02:37.4]} 15...
Be7 {[%clk 0:01:44.3]} 16. Bg4 {[%clk 0:02:25]} 16... a5 {[%clk 0:01:39.8]} 17.
Bxf5 {[%clk 0:02:11.8]} 17... gxf5 {[%clk 0:01:38.5]} 18. a3 {[%clk 0:02:04]}
18... b6 {[%clk 0:01:28]} 19. Na4 {[%clk 0:01:52.9]} 19... O-O {[%clk
0:01:19.1]} 20. Nb2 {[%clk 0:01:49.4]} 20... b5 {[%clk 0:01:15.8]} 21. h4 {[%clk
0:01:42.3]} 21... axb4 {[%clk 0:01:04.4]} 22. axb4 {[%clk 0:01:41.7]} 22... Rxa1
{[%clk 0:01:04.7]} 23. Qxa1 {[%clk 0:01:41.6]} 23... Qb7 {[%clk 0:01:03.3]} 24.
Qc1 {[%clk 0:01:29.2]} 24... Ra8 {[%clk 0:01:01.8]} 25. h5 {[%clk 0:01:22.1]}
25... Ra2 {[%clk 0:00:51.5]} 26. h6 {[%clk 0:01:21.8]} 26... g6 {[%clk
0:00:51.4]} 27. Nd1 {[%clk 0:01:15.3]} 27... Kh7 {[%clk 0:00:45.4]} 28. Bg5
{[%clk 0:01:13.4]} 28... Bxg5 {[%clk 0:00:22.2]} 29. Qxg5 {[%clk 0:01:12.7]}
29... Qe7 {[%clk 0:00:22.9]} 30. Qc1 {[%clk 0:00:59.5]} 30... g5 {[%clk
0:00:23.2]} 31. Ne3 {[%clk 0:00:50.8]} 31... Kxh6 {[%clk 0:00:22.7]} 32. Kg2
{[%clk 0:00:51.3]} 32... Kg7 {[%clk 0:00:20.3]} 33. Rh1 {[%clk 0:00:49.4]} 33...
Ra8 {[%clk 0:00:19.5]} 34. Rh5 {[%clk 0:00:37.9]} 34... Rh8 {[%clk 0:00:17.9]}
35. Qh1 {[%clk 0:00:37.8]} 35... Rxh5 {[%clk 0:00:10.1]} 36. Qxh5 {[%clk
0:00:38.7]} 36... g4 {[%clk 0:00:08.7]} 37. Kg1 {[%clk 0:00:34.3]} 37... f6
{[%clk 0:00:07.5]} 38. exf6+ {[%clk 0:00:28.4]} 38... Kxf6 {[%clk 0:00:07.6]}
39. Ng2 {[%clk 0:00:19.3]} 39... Qf7 {[%clk 0:00:06.2]} 40. Qh6+ {[%clk
0:00:18.8]} 40... Ke7 {[%clk 0:00:05.9]} 41. Nf4 {[%clk 0:00:18.6]} 41... Kd7
{[%clk 0:00:06.1]} 42. Ng6 {[%clk 0:00:17.6]} 42... Kd6 {[%clk 0:00:04.5]} 43.
Nf4 {[%clk 0:00:17.4]} 43... Ne7 {[%clk 0:00:04.4]} 44. Qh8 {[%clk 0:00:17.1]}
44... Kd7 {[%clk 0:00:02.9]} 45. Qb8 {[%clk 0:00:17]} 45... Nc8 {[%clk
0:00:01.4]} 46. Qb7+ {[%clk 0:00:17]} 1-0

[Event "Early-Titled-Tuesday-Blitz-March-12-2024"]
[Site "Chess.com"]
[Date "2024.03.12"]
[Round "5"]
[White "Eloist"]
[Black "electrosaw"]
[Result "0-1"]
[WhiteElo "2439"]
[BlackElo "2560"]
[TimeControl "180+1"]
[EndTime "8:55:48 PDT"]
[Termination "electrosaw won on time"]

1. e4 {[%clk 0:03:00.9]} 1... b6 {[%clk 0:02:55.6]} 2. d4 {[%clk 0:02:59.5]}
2... Bb7 {[%clk 0:02:55.8]} 3. Bd3 {[%clk 0:02:59.2]} 3... Nf6 {[%clk
0:02:55.7]} 4. Qe2 {[%clk 0:02:57.6]} 4... e6 {[%clk 0:02:56.1]} 5. Nf3 {[%clk
0:02:53.2]} 5... c5 {[%clk 0:02:55.7]} 6. c3 {[%clk 0:02:49.8]} 6... d6 {[%clk
0:02:55.7]} 7. O-O {[%clk 0:02:49]} 7... Be7 {[%clk 0:02:55.5]} 8. Re1 {[%clk
0:02:46.7]} 8... a6 {[%clk 0:02:54.1]} 9. a4 {[%clk 0:02:46.2]} 9... Nbd7 {[%clk
0:02:53.8]} 10. Nbd2 {[%clk 0:02:45.7]} 10... Qc7 {[%clk 0:02:50.2]} 11. Nf1
{[%clk 0:02:44.2]} 11... e5 {[%clk 0:02:49.1]} 12. d5 {[%clk 0:02:38.4]} 12...
g6 {[%clk 0:02:42.1]} 13. Ng3 {[%clk 0:02:37.4]} 13... Bf8 {[%clk 0:02:34]} 14.
b4 {[%clk 0:02:32.5]} 14... Bg7 {[%clk 0:02:25.2]} 15. Bd2 {[%clk 0:02:32]}
15... O-O {[%clk 0:02:24.6]} 16. Rab1 {[%clk 0:02:25.2]} 16... Rfc8 {[%clk
0:02:13]} 17. h3 {[%clk 0:02:20.8]} 17... c4 {[%clk 0:02:09]} 18. Bc2 {[%clk
0:02:20.6]} 18... b5 {[%clk 0:02:09.5]} 19. a5 {[%clk 0:02:16.2]} 19... Rf8
{[%clk 0:02:09.3]} 20. Nh2 {[%clk 0:02:14.4]} 20... Bc8 {[%clk 0:02:09]} 21. Ng4
{[%clk 0:02:10]} 21... h5 {[%clk 0:02:06.4]} 22. Nh2 {[%clk 0:02:03.4]} 22... h4
{[%clk 0:02:04.9]} 23. Ngf1 {[%clk 0:02:00]} 23... Nh5 {[%clk 0:02:02.2]} 24.
Qf3 {[%clk 0:01:44.1]} 24... Qd8 {[%clk 0:01:54.6]} 25. Ng4 {[%clk 0:01:38.8]}
25... Nf4 {[%clk 0:01:35.6]} 26. Kh2 {[%clk 0:01:24.4]} 26... f5 {[%clk
0:01:33.2]} 27. exf5 {[%clk 0:01:15.6]} 27... gxf5 {[%clk 0:01:34.1]} 28. Nge3
{[%clk 0:01:04.8]} 28... e4 {[%clk 0:01:34]} 29. Qd1 {[%clk 0:00:53.9]} 29...
Nd3 {[%clk 0:01:14.9]} 30. Bxd3 {[%clk 0:00:52.9]} 30... cxd3 {[%clk 0:01:15.8]}
31. Qh5 {[%clk 0:00:21.8]} 31... Qf6 {[%clk 0:01:11.9]} 32. f3 {[%clk
0:00:17.5]} 32... Ne5 {[%clk 0:01:10.1]} 33. fxe4 {[%clk 0:00:15.9]} 33... fxe4
{[%clk 0:01:11]} 34. Ng4 {[%clk 0:00:09.6]} 34... Bxg4 {[%clk 0:01:05.6]} 35.
hxg4 {[%clk 0:00:10.5]} 35... Nc4 {[%clk 0:01:05.2]} 36. Bg5 {[%clk 0:00:09.2]}
36... Qe5+ {[%clk 0:01:04.8]} 37. Kh1 {[%clk 0:00:09.3]} 37... Rae8 {[%clk
0:00:46.9]} 38. Ne3 {[%clk 0:00:09.3]} 38... Nxe3 {[%clk 0:00:44.7]} 39. Bxe3
{[%clk 0:00:09.4]} 39... Qxh5 {[%clk 0:00:43.5]} 40. gxh5 {[%clk 0:00:09.4]}
40... Bxc3 {[%clk 0:00:44.4]} 41. Rec1 {[%clk 0:00:08.3]} 41... Be5 {[%clk
0:00:39]} 42. Rc6 {[%clk 0:00:07.4]} 42... Bf4 {[%clk 0:00:38.8]} 43. Bxf4
{[%clk 0:00:05.3]} 43... Rxf4 {[%clk 0:00:39.7]} 44. Rxd6 {[%clk 0:00:05.7]}
44... d2 {[%clk 0:00:37.3]} 45. Rg6+ {[%clk 0:00:05.5]} 45... Kh7 {[%clk
0:00:34.1]} 46. d6 {[%clk 0:00:05.8]} 46... e3 {[%clk 0:00:31.9]} 47. d7 {[%clk
0:00:05.7]} 47... Rd8 {[%clk 0:00:32.2]} 48. Re6 {[%clk 0:00:05.5]} 48... Rxb4
{[%clk 0:00:26.4]} 49. Rg1 {[%clk 0:00:02]} 49... Rc4 {[%clk 0:00:24.1]} 50.
Rxe3 {[%clk 0:00:02]} 50... Rc1 {[%clk 0:00:24.3]} 51. Rd3 {[%clk 0:00:01.1]}
51... Rc7 {[%clk 0:00:14.4]} 0-1

[Event "Early-Titled-Tuesday-Blitz-March-12-2024"]
[Site "Chess.com"]
[Date "2024.03.12"]
[Round "5"]
[White "nekotyanof"]
[Black "Rainbow2014"]
[Result "1-0"]
[WhiteElo "2650"]
[BlackElo "2468"]
[TimeControl "180+1"]
[EndTime "8:55:50 PDT"]
[Termination "nekotyanof won on time"]

1. e4 {[%clk 0:02:52.6]} 1... c5 {[%clk 0:02:59.9]} 2. Nf3 {[%clk 0:02:51.7]}
2... d6 {[%clk 0:03:00.4]} 3. Bb5+ {[%clk 0:02:50.4]} 3... Nd7 {[%clk
0:02:58.4]} 4. O-O {[%clk 0:02:48]} 4... Nf6 {[%clk 0:02:58.6]} 5. Re1 {[%clk
0:02:47.7]} 5... e5 {[%clk 0:02:57.4]} 6. c3 {[%clk 0:02:47.5]} 6... Be7 {[%clk
0:02:57.4]} 7. d4 {[%clk 0:02:47.2]} 7... cxd4 {[%clk 0:02:58.3]} 8. cxd4 {[%clk
0:02:48.1]} 8... exd4 {[%clk 0:02:57.7]} 9. Qxd4 {[%clk 0:02:48]} 9... O-O
{[%clk 0:02:58.6]} 10. Nc3 {[%clk 0:02:47.6]} 10... a6 {[%clk 0:02:58.1]} 11.
Bf1 {[%clk 0:02:42.6]} 11... Nc5 {[%clk 0:02:58.1]} 12. Bg5 {[%clk 0:02:40.7]}
12... Bg4 {[%clk 0:02:57.5]} 13. e5 {[%clk 0:02:26.1]} 13... dxe5 {[%clk
0:02:41.1]} 14. Qxe5 {[%clk 0:02:17.9]} 14... Bxf3 {[%clk 0:02:25]} 15. Qxe7
{[%clk 0:02:11.2]} 15... Qxe7 {[%clk 0:02:25.8]} 16. Rxe7 {[%clk 0:02:11.9]}
16... Bc6 {[%clk 0:02:26.5]} 17. Rae1 {[%clk 0:01:54.9]} 17... Rfe8 {[%clk
0:02:16.5]} 18. Bxf6 {[%clk 0:01:52.7]} 18... gxf6 {[%clk 0:02:15.9]} 19. Nd5
{[%clk 0:01:49.9]} 19... Kg7 {[%clk 0:02:09.8]} 20. Nc7 {[%clk 0:01:42.4]} 20...
Rxe7 {[%clk 0:02:06.5]} 21. Rxe7 {[%clk 0:01:43.3]} 21... Rd8 {[%clk 0:01:47.6]}
22. b4 {[%clk 0:01:41]} 22... Rd7 {[%clk 0:01:46.4]} 23. Ne8+ {[%clk 0:01:16.2]}
23... Kf8 {[%clk 0:00:56.8]} 24. Rxd7 {[%clk 0:01:14.8]} 24... Nxd7 {[%clk
0:00:56.5]} 25. Nd6 {[%clk 0:01:15.4]} 25... Nb6 {[%clk 0:00:45.4]} 26. a3
{[%clk 0:01:10.5]} 26... Ke7 {[%clk 0:00:30.2]} 27. Nf5+ {[%clk 0:01:09.8]}
27... Ke6 {[%clk 0:00:30.2]} 28. g4 {[%clk 0:01:09.6]} 28... Kd5 {[%clk
0:00:18.7]} 29. Bg2+ {[%clk 0:01:06.5]} 29... Kc4 {[%clk 0:00:17.3]} 30. Nd6+
{[%clk 0:00:58.2]} 30... Kb3 {[%clk 0:00:15]} 31. Nxb7 {[%clk 0:00:46.5]} 31...
Bb5 {[%clk 0:00:15.3]} 32. Nc5+ {[%clk 0:00:32.5]} 32... Kxa3 {[%clk 0:00:15.4]}
33. Bb7 {[%clk 0:00:33.4]} 33... Kxb4 {[%clk 0:00:13.5]} 34. Nxa6+ {[%clk
0:00:33.7]} 34... Bxa6 {[%clk 0:00:13.3]} 35. Bxa6 {[%clk 0:00:34.6]} 35... Kc5
{[%clk 0:00:12.7]} 36. Kg2 {[%clk 0:00:35.2]} 36... Kd6 {[%clk 0:00:12.3]} 37.
Kf3 {[%clk 0:00:35.9]} 37... Ke7 {[%clk 0:00:12.2]} 38. h4 {[%clk 0:00:35.6]}
38... Nd7 {[%clk 0:00:11.9]} 39. Kf4 {[%clk 0:00:35.3]} 39... Ne5 {[%clk
0:00:10.8]} 40. h5 {[%clk 0:00:32.8]} 40... h6 {[%clk 0:00:11]} 41. Kf5 {[%clk
0:00:32.7]} 41... Nc6 {[%clk 0:00:10.8]} 42. Bc4 {[%clk 0:00:31.6]} 42... Nd4+
{[%clk 0:00:10.9]} 43. Ke4 {[%clk 0:00:32.2]} 43... Nc6 {[%clk 0:00:10.4]} 44.
f4 {[%clk 0:00:32.9]} 44... Kf8 {[%clk 0:00:09.2]} 45. Bd5 {[%clk 0:00:32.6]}
45... Ne7 {[%clk 0:00:08.8]} 46. Bb7 {[%clk 0:00:32.2]} 46... Kg7 {[%clk
0:00:08.5]} 47. Kd4 {[%clk 0:00:26.9]} 47... Ng6 {[%clk 0:00:08]} 48. hxg6
{[%clk 0:00:24.6]} 48... fxg6 {[%clk 0:00:08.2]} 49. Be4 {[%clk 0:00:17.9]}
49... Kf7 {[%clk 0:00:08.4]} 50. Kd5 {[%clk 0:00:16.6]} 50... Ke7 {[%clk
0:00:09]} 51. Bxg6 {[%clk 0:00:16.9]} 51... h5 {[%clk 0:00:09.4]} 52. gxh5
{[%clk 0:00:16.8]} 1-0

[Event "Early-Titled-Tuesday-Blitz-March-12-2024"]
[Site "Chess.com"]
[Date "2024.03.12"]
[Round "5"]
[White "Winner_7777"]
[Black "kpio91"]
[Result "1-0"]
[WhiteElo "2581"]
[BlackElo "2844"]
[TimeControl "180+1"]
[EndTime "8:55:52 PDT"]
[Termination "Winner_7777 won by resignation"]

1. d4 {[%clk 0:03:00.9]} 1... c6 {[%clk 0:02:43.3]} 2. c4 {[%clk 0:03:01.2]}
2... d5 {[%clk 0:02:41.5]} 3. Nc3 {[%clk 0:03:02]} 3... Nf6 {[%clk 0:02:41]} 4.
Nf3 {[%clk 0:03:02.7]} 4... g6 {[%clk 0:02:41.1]} 5. cxd5 {[%clk 0:02:50.1]}
5... cxd5 {[%clk 0:02:39.8]} 6. Bf4 {[%clk 0:02:50.8]} 6... Nc6 {[%clk
0:02:39.9]} 7. e3 {[%clk 0:02:51.1]} 7... Nh5 {[%clk 0:02:39.9]} 8. Bg5 {[%clk
0:02:49.9]} 8... Bg7 {[%clk 0:02:32.6]} 9. Be2 {[%clk 0:02:45.6]} 9... h6 {[%clk
0:02:30.1]} 10. Bh4 {[%clk 0:02:45.8]} 10... g5 {[%clk 0:02:23.6]} 11. Bg3
{[%clk 0:02:46]} 11... Nxg3 {[%clk 0:02:22.4]} 12. hxg3 {[%clk 0:02:46.9]} 12...
e6 {[%clk 0:02:22.5]} 13. Qd2 {[%clk 0:02:35.2]} 13... Bd7 {[%clk 0:02:09.8]}
14. O-O-O {[%clk 0:02:23.8]} 14... Rb8 {[%clk 0:02:06.9]} 15. Kb1 {[%clk
0:02:21.8]} 15... Na5 {[%clk 0:01:57.3]} 16. Ne5 {[%clk 0:02:15.8]} 16... Nc6
{[%clk 0:01:47.6]} 17. e4 {[%clk 0:01:47.8]} 17... dxe4 {[%clk 0:01:29.1]} 18.
Nxe4 {[%clk 0:01:48.7]} 18... O-O {[%clk 0:01:26.2]} 19. Ng4 {[%clk 0:00:49]}
19... e5 {[%clk 0:00:14.8]} 20. Nxh6+ {[%clk 0:00:18.1]} 20... Bxh6 {[%clk
0:00:14.2]} 21. Rxh6 {[%clk 0:00:19]} 21... Bf5 {[%clk 0:00:13.9]} 22. Bd3
{[%clk 0:00:19.7]} 22... Kg7 {[%clk 0:00:12.4]} 23. Rdh1 {[%clk 0:00:16.5]}
23... Qe7 {[%clk 0:00:05.5]} 24. Nxg5 {[%clk 0:00:15.9]} 24... Rh8 {[%clk
0:00:03.6]} 25. Rxh8 {[%clk 0:00:13.7]} 25... Rxh8 {[%clk 0:00:04.5]} 26. Rxh8
{[%clk 0:00:13.2]} 26... Kxh8 {[%clk 0:00:02.7]} 27. Bxf5 {[%clk 0:00:13.1]}
27... Nxd4 {[%clk 0:00:03.1]} 28. Bd3 {[%clk 0:00:09.1]} 28... f6 {[%clk
0:00:02.2]} 29. Ne4 {[%clk 0:00:09.5]} 29... Kg7 {[%clk 0:00:02.4]} 30. f4
{[%clk 0:00:08.8]} 30... f5 {[%clk 0:00:02.3]} 31. Ng5 {[%clk 0:00:08.9]} 31...
Qd6 {[%clk 0:00:02.2]} 32. Bc4 {[%clk 0:00:07]} 32... Kf6 {[%clk 0:00:01.9]} 33.
fxe5+ {[%clk 0:00:06.2]} 33... Qxe5 {[%clk 0:00:02.4]} 34. Nf3 {[%clk
0:00:05.6]} 34... Qe4+ {[%clk 0:00:02.9]} 35. Bd3 {[%clk 0:00:05.3]} 35... Nxf3
{[%clk 0:00:02.3]} 36. gxf3 {[%clk 0:00:04.5]} 36... Qxf3 {[%clk 0:00:02.5]} 37.
Qc3+ {[%clk 0:00:04.7]} 37... Kg6 {[%clk 0:00:02.1]} 38. a3 {[%clk 0:00:02]}
38... Kg5 {[%clk 0:00:01.6]} 39. Bc2 {[%clk 0:00:02.3]} 39... Qf1+ {[%clk
0:00:01.2]} 40. Ka2 {[%clk 0:00:02.6]} 40... Qf2 {[%clk 0:00:02.1]} 41. Bb3
{[%clk 0:00:02.5]} 41... Kg4 {[%clk 0:00:02.6]} 42. Bd5 {[%clk 0:00:02.6]} 42...
Qxg3 {[%clk 0:00:02.7]} 43. Qxg3+ {[%clk 0:00:03.2]} 43... Kxg3 {[%clk
0:00:03.4]} 44. Bxb7 {[%clk 0:00:04.1]} 44... f4 {[%clk 0:00:04.3]} 45. b4
{[%clk 0:00:04.6]} 1-0

[Event "Early-Titled-Tuesday-Blitz-March-12-2024"]
[Site "Chess.com"]
[Date "2024.03.12"]
[Round "5"]
[White "PepeCuenca"]
[Black "josephymwale33"]
[Result "1-0"]
[WhiteElo "2698"]
[BlackElo "2509"]
[TimeControl "180+1"]
[EndTime "8:55:53 PDT"]
[Termination "PepeCuenca won by resignation"]

1. d4 {[%clk 0:02:57]} 1... d5 {[%clk 0:02:59.5]} 2. Bf4 {[%clk 0:02:56.8]} 2...
e6 {[%clk 0:02:59.2]} 3. e3 {[%clk 0:02:56.5]} 3... Nf6 {[%clk 0:02:59]} 4. Nf3
{[%clk 0:02:56]} 4... c5 {[%clk 0:02:59.1]} 5. Nbd2 {[%clk 0:02:55.8]} 5... Nc6
{[%clk 0:02:59.4]} 6. c3 {[%clk 0:02:56]} 6... Be7 {[%clk 0:02:57.3]} 7. Bd3
{[%clk 0:02:55.3]} 7... O-O {[%clk 0:02:57.2]} 8. Ne5 {[%clk 0:02:56]} 8... cxd4
{[%clk 0:02:54.7]} 9. exd4 {[%clk 0:02:54.8]} 9... Nxe5 {[%clk 0:02:48.2]} 10.
dxe5 {[%clk 0:02:48.9]} 10... Nd7 {[%clk 0:02:48.2]} 11. Nf3 {[%clk 0:02:36.3]}
11... f5 {[%clk 0:02:44.3]} 12. h4 {[%clk 0:01:58.6]} 12... Nc5 {[%clk
0:02:27.8]} 13. Be2 {[%clk 0:01:50.9]} 13... Ne4 {[%clk 0:02:25.2]} 14. Rb1
{[%clk 0:01:01]} 14... Bc5 {[%clk 0:02:07.8]} 15. Nd4 {[%clk 0:00:58]} 15... Be7
{[%clk 0:01:46.2]} 16. g3 {[%clk 0:00:51.6]} 16... Bd7 {[%clk 0:01:37.1]} 17. f3
{[%clk 0:00:47.8]} 17... Nc5 {[%clk 0:01:35.2]} 18. Qd2 {[%clk 0:00:46.8]} 18...
Rb8 {[%clk 0:01:00.5]} 19. Bg5 {[%clk 0:00:45.9]} 19... b5 {[%clk 0:00:57.6]}
20. Bxe7 {[%clk 0:00:37.2]} 20... Qxe7 {[%clk 0:00:58.5]} 21. f4 {[%clk
0:00:32.8]} 21... b4 {[%clk 0:00:53.8]} 22. c4 {[%clk 0:00:28.5]} 22... Ne4
{[%clk 0:00:49.9]} 23. Qe3 {[%clk 0:00:28.7]} 23... dxc4 {[%clk 0:00:31.7]} 24.
Bxc4 {[%clk 0:00:28.5]} 24... Rfc8 {[%clk 0:00:32.4]} 25. b3 {[%clk 0:00:23.3]}
25... Nc3 {[%clk 0:00:28.5]} 26. Rb2 {[%clk 0:00:22.8]} 26... a5 {[%clk
0:00:26.9]} 27. O-O {[%clk 0:00:17.3]} 27... Ne4 {[%clk 0:00:20.3]} 28. Kh2
{[%clk 0:00:15.6]} 28... Kh8 {[%clk 0:00:15.6]} 29. Nf3 {[%clk 0:00:15.4]} 29...
Bb5 {[%clk 0:00:14.6]} 30. Bxb5 {[%clk 0:00:04.3]} 30... Rxb5 {[%clk 0:00:15.5]}
31. Ng5 {[%clk 0:00:03.4]} 31... Rc3 {[%clk 0:00:11.6]} 32. Qe2 {[%clk
0:00:03.8]} 32... Nxg5 {[%clk 0:00:10.2]} 33. Qxb5 {[%clk 0:00:03.5]} 33... Nf7
{[%clk 0:00:04.1]} 34. Qe2 {[%clk 0:00:03.9]} 34... h6 {[%clk 0:00:03.6]} 35.
Rc2 {[%clk 0:00:04.1]} 35... Qc5 {[%clk 0:00:03.6]} 36. Rxc3 {[%clk 0:00:03.8]}
36... bxc3 {[%clk 0:00:04.5]} 37. Rc1 {[%clk 0:00:04.1]} 37... Qd4 {[%clk
0:00:03.7]} 38. Qc2 {[%clk 0:00:03.6]} 38... g5 {[%clk 0:00:04]} 39. hxg5 {[%clk
0:00:03.5]} 39... hxg5 {[%clk 0:00:04.5]} 40. Rd1 {[%clk 0:00:04]} 40... Qe3
{[%clk 0:00:04.2]} 41. Rd3 {[%clk 0:00:04.1]} 41... Qe1 {[%clk 0:00:02.9]} 42.
Rxc3 {[%clk 0:00:03.7]} 42... gxf4 {[%clk 0:00:02.7]} 43. gxf4 {[%clk
0:00:04.4]} 43... Qh4+ {[%clk 0:00:03.1]} 44. Rh3 {[%clk 0:00:04.1]} 1-0

[Event "Early-Titled-Tuesday-Blitz-March-12-2024"]
[Site "Chess.com"]
[Date "2024.03.12"]
[Round "5"]
[White "Hovik_Hayrapetyan"]
[Black "SaiAgni_98"]
[Result "1-0"]
[WhiteElo "2834"]
[BlackElo "2559"]
[TimeControl "180+1"]
[EndTime "8:55:54 PDT"]
[Termination "Hovik_Hayrapetyan won on time"]

1. d4 {[%clk 0:02:59]} 1... Nf6 {[%clk 0:02:59.7]} 2. c4 {[%clk 0:02:58.8]} 2...
d6 {[%clk 0:03:00]} 3. Nf3 {[%clk 0:02:57.6]} 3... Nbd7 {[%clk 0:03:00.9]} 4.
Nc3 {[%clk 0:02:55.7]} 4... e5 {[%clk 0:03:01.3]} 5. g3 {[%clk 0:02:54.8]} 5...
Be7 {[%clk 0:03:01.4]} 6. Bg2 {[%clk 0:02:55.1]} 6... O-O {[%clk 0:03:01.7]} 7.
O-O {[%clk 0:02:55.7]} 7... c6 {[%clk 0:03:01.9]} 8. e4 {[%clk 0:02:55.9]} 8...
a6 {[%clk 0:03:01.1]} 9. h3 {[%clk 0:02:52.7]} 9... b5 {[%clk 0:02:57.9]} 10. c5
{[%clk 0:02:51.5]} 10... Qc7 {[%clk 0:02:42.5]} 11. cxd6 {[%clk 0:02:37]} 11...
Bxd6 {[%clk 0:02:42]} 12. dxe5 {[%clk 0:02:36.8]} 12... Nxe5 {[%clk 0:02:42.8]}
13. Nxe5 {[%clk 0:02:37.7]} 13... Bxe5 {[%clk 0:02:43.5]} 14. f4 {[%clk
0:02:38.2]} 14... Rd8 {[%clk 0:02:35]} 15. Qe2 {[%clk 0:02:18.5]} 15... Bd4+
{[%clk 0:02:31.8]} 16. Be3 {[%clk 0:02:18.1]} 16... Bb7 {[%clk 0:01:50.2]} 17.
e5 {[%clk 0:02:12.2]} 17... Ne8 {[%clk 0:01:27.1]} 18. Rad1 {[%clk 0:01:56.4]}
18... c5 {[%clk 0:01:07.4]} 19. Ne4 {[%clk 0:01:35.1]} 19... h6 {[%clk
0:00:52.8]} 20. Kh2 {[%clk 0:01:20.7]} 20... Rac8 {[%clk 0:00:40.1]} 21. Qf2
{[%clk 0:00:53.8]} 21... Qb6 {[%clk 0:00:25.4]} 22. b4 {[%clk 0:00:47.2]} 22...
Bxe3 {[%clk 0:00:10.6]} 23. Qxe3 {[%clk 0:00:46.5]} 23... Bxe4 {[%clk
0:00:10.3]} 24. Bxe4 {[%clk 0:00:26]} 24... Qe6 {[%clk 0:00:10.5]} 25. bxc5
{[%clk 0:00:22.2]} 25... Qxa2+ {[%clk 0:00:09.7]} 26. Rf2 {[%clk 0:00:17.1]}
26... Qe6 {[%clk 0:00:08.4]} 27. Rfd2 {[%clk 0:00:13.9]} 27... Rxd2+ {[%clk
0:00:08.1]} 28. Rxd2 {[%clk 0:00:14.8]} 28... Qc4 {[%clk 0:00:08.6]} 29. c6
{[%clk 0:00:14.1]} 29... b4 {[%clk 0:00:07.8]} 30. Bd5 {[%clk 0:00:11.2]} 30...
Qc3 {[%clk 0:00:03.7]} 31. Qxc3 {[%clk 0:00:10.9]} 31... bxc3 {[%clk 0:00:04.4]}
32. Rc2 {[%clk 0:00:11.5]} 32... Nc7 {[%clk 0:00:05.3]} 33. Be4 {[%clk
0:00:10.8]} 33... Nb5 {[%clk 0:00:05.7]} 34. Kg2 {[%clk 0:00:07]} 34... Kf8
{[%clk 0:00:05.4]} 35. Kf2 {[%clk 0:00:07.1]} 35... Ke7 {[%clk 0:00:05.4]} 36.
Ke3 {[%clk 0:00:07.7]} 36... Rc7 {[%clk 0:00:02.2]} 37. f5 {[%clk 0:00:06.2]}
37... f6 {[%clk 0:00:02.2]} 38. e6 {[%clk 0:00:05.5]} 38... Kd6 {[%clk
0:00:02.8]} 39. Rc1 {[%clk 0:00:05.8]} 39... Ke5 {[%clk 0:00:03.1]} 40. Rd1
{[%clk 0:00:05.2]} 1-0